bitfinex/quotes_ETHUSD_20250112
["timestamp","ask_amount","ask_price","bid_price","bid_amount"]
[1736720634670,2.61199719,3242.7,3242.6,3.257889]
[1736720635199,0.005,3243.4,3242.9,2.1585]
[1736720635200,2.61199719,3243.0,3242.9,2.1585]
[1736720635359,2.61199719,3243.0,3242.9,2.94573083]
[1736720635561,2.61199719,3243.3,3243.0,2.15844]
[1736720635787,2.61199719,3243.3,3243.1,0.03082922]
[1736720636110,2.61199719,3243.3,3243.2,3.13368692]
[1736720636266,0.005,3243.4,3243.3,2.15829]
[1736720637013,0.005,3243.4,3243.3,2.94995891]
[1736720640318,2.61699719,3243.4,3243.3,0.79166891]
[1736720640520,3.37949719,3243.4,3243.3,0.03526891]
[1736720640883,3.37949719,3243.4,3242.4,0.8006]
[1736720641220,2.61199719,3242.6,3242.4,0.8006]
[1736720641762,2.61199719,3242.6,3242.1,0.7671]
[1736720642016,2.61199719,3242.3,3242.1,0.7671]
[1736720646520,2.61199719,3242.3,3241.8,0.8159]
[1736720646729,2.61199719,3241.9,3241.6,2.97529]
[1736720647034,3.43639719,3241.9,3241.2,2.15962]
[1736720647236,3.43639719,3241.9,3241.3,3.69682114]
[1736720647389,2.61199719,3241.6,3241.3,3.69682114]
[1736720647592,2.61199719,3241.6,3241.3,5.85643114]
[1736720648498,2.61199719,3241.6,3241.3,3.69682114]
[1736720648718,2.61199719,3241.6,3241.5,2.15949]
[1736720648913,2.61199719,3241.6,3241.5,5.77012111]
[1736720651098,2.61199719,3241.6,3241.5,5.80062645]
[1736720651814,2.61199719,3241.6,3241.5,3.64113645]
[1736720651988,2.61199719,3241.6,3241.5,0.64113645]
[1736720652194,2.61199719,3241.6,3241.5,0.03050534]
[1736720653867,3.36429719,3241.6,3241.5,0.03050534]
[1736720654239,3.36429719,3241.6,3241.3,0.69682114]
[1736720654775,3.36429719,3241.6,3241.4,0.03161548]
[1736720658068,3.36429719,3241.6,3241.1,3.99269139]
[1736720658284,2.61199719,3241.2,3241.1,3.99269139]
[1736720658582,2.61199719,3241.2,3241.1,4.39196053]
[1736720661778,2.61199719,3241.2,3241.1,3.99269139]
[1736720661779,3.36429719,3241.2,3241.1,3.99269139]
[1736720665394,5.97629438,3241.2,3241.1,3.99269139]
[1736720665759,3.36429719,3241.2,3241.1,3.99269139]
[1736720665981,3.36429719,3241.2,3241.1,4.02569744]
[1736720670903,2.61199719,3241.2,3241.1,4.02569744]
[1736720671204,2.61199719,3241.2,3241.1,6.58795718]
[1736720671501,2.61199719,3241.2,3241.1,7.42015718]
[1736720672068,2.61199719,3241.5,3241.3,0.8322]
[1736720672265,0.7523,3242.4,3241.4,3.02260502]
[1736720672466,2.61199719,3241.8,3241.4,3.05458789]
[1736720672668,2.61199719,3241.8,3241.7,2.15936]
[1736720672883,2.61199719,3241.8,3241.7,2.19020284]
[1736720673414,2.61199719,3241.8,3241.7,3.05416188]
[1736720673720,2.61199719,3241.8,3241.7,3.02331904]
[1736720674214,2.61199719,3241.8,3241.7,3.05416108]
[1736720674514,2.61199719,3241.8,3241.7,3.39262307]
[1736720675433,2.61199719,3241.8,3241.7,3.61178103]
[1736720675778,0.7604,3242.9,3241.7,3.61178103]
[1736720675779,2.61199719,3242.1,3242.0,2.98936]
[1736720676113,2.61199719,3242.1,3242.0,3.05167838]
[1736720677175,2.61199719,3242.1,3242.0,3.02083932]
[1736720677409,2.61199719,3242.1,3242.0,3.34792325]
[1736720678040,3.005,3243.4,3242.4,0.25]
[1736720678041,2.61199719,3242.8,3242.4,0.25]
[1736720678217,2.61199719,3242.8,3242.7,2.15869]
[1736720678911,2.61199719,3242.8,3242.7,2.19000152]
[1736720679105,2.61199719,3242.8,3242.7,2.49510488]
[1736720679517,2.61199719,3243.1,3242.7,0.33641488]
[1736720679827,2.61199719,3243.1,3242.8,2.18945068]
[1736720680124,2.61699719,3243.4,3243.0,0.25]
[1736720680324,2.61699719,3243.4,3243.2,2.15836]
[1736720680821,2.61699719,3243.4,3243.3,0.02874962]
[1736720680985,2.61699719,3243.4,3243.3,0.21871096]
[1736720681192,2.61699719,3243.4,3243.3,0.24746058]
[1736720681516,2.61699719,3243.4,3243.3,1.01256058]
[1736720682734,2.61699719,3243.4,3243.3,0.79384962]
[1736720683406,2.61699719,3243.4,3243.3,0.82467624]
[1736720684206,0.005,3243.4,3243.3,0.82467624]
[1736720686331,0.005,3243.4,3243.3,3.24796624]
[1736720686531,0.005,3243.4,3243.3,3.18839]
[1736720686711,0.005,3243.4,3243.3,6.5859522]
[1736720686914,0.005,3243.4,3243.3,6.555129]
[1736720687251,0.005,3243.4,3243.3,10.00011079]
[1736720687833,0.005,3243.4,3243.3,10.00761079]
[1736720688046,0.005,3243.4,3243.3,15.56511079]
[1736720688840,2.60686919,3244.0,3243.8,0.25]
[1736720689015,2.60686919,3244.0,3243.9,0.8272]
[1736720691321,2.61199719,3244.3,3244.0,0.25]
[1736720692321,2.61199719,3244.3,3243.9,1.0552]
[1736720692524,2.61199719,3244.0,3243.6,1.0443]
[1736720692826,2.61199719,3243.7,3243.6,1.0443]
[1736720695448,2.61199719,3244.0,3243.6,1.07512347]
[1736720696236,2.61199719,3244.0,3243.6,1.2943]
[1736720696441,2.61199719,3244.0,3243.7,0.345245]
[1736720696642,0.8322,3244.5,3243.7,0.345245]
[1736720696842,2.61199719,3244.0,3243.7,0.345245]
[1736720697716,2.61199719,3244.0,3243.8,0.03082084]
[1736720697929,0.8322,3244.5,3243.8,0.03082084]
[1736720698215,2.61199719,3244.1,3243.8,0.03082084]
[1736720699217,2.61199719,3244.1,3243.9,1.0562]
[1736720699550,2.61199719,3244.1,3244.0,0.40562]
[1736720699920,2.61199719,3244.1,3244.0,0.63362]
[1736720700149,2.61199719,3244.1,3244.0,0.228]
[1736720700541,2.61199719,3244.1,3243.5,0.8062]
[1736720700745,2.61199719,3243.6,3243.5,0.8062]
[1736720704222,2.61199719,3243.6,3243.5,0.83702451]
[1736720706561,2.61199719,3243.9,3243.5,0.83702451]
[1736720706762,2.61199719,3243.9,3243.6,0.42820063]
[1736720706964,2.61199719,3243.9,3243.7,0.03082241]
[1736720707459,2.61199719,3243.9,3243.6,0.42820063]
[1736720707662,2.61199719,3243.9,3243.7,0.03082179]
[1736720708760,2.61199719,3244.2,3243.9,0.8062]
[1736720708960,2.61199719,3244.2,3243.9,3.8062]
[1736720709265,2.61199719,3244.2,3244.0,0.597915]
[1736720713477,2.61199719,3244.5,3244.1,0.03081844]
[1736720713977,2.61199719,3244.5,3244.2,0.7628]
[1736720714180,2.61199719,3244.5,3244.3,0.0308166]
[1736720714676,2.61199719,3244.5,3244.3,2.1884366]
[1736720714876,2.61199719,3244.5,3244.4,0.29512366]
[1736720715179,2.61199719,3244.8,3244.5,0.0225]
[1736720715392,2.61199719,3244.8,3244.7,0.8035]
[1736720716182,2.61199719,3244.8,3244.7,6.24086]
[1736720716397,2.61199719,3245.4,3245.1,2.15709]
[1736720716602,2.61199719,3245.4,3245.2,0.24726628]
[1736720716779,2.61199719,3245.4,3245.2,1.05506628]
[1736720717688,2.61199719,3245.4,3245.3,0.0075]
[1736720718191,3.251,3247.9,3245.3,0.0075]
[1736720718192,0.15173556,3246.5,3245.7,0.015]
[1736720718392,2.61199719,3246.2,3245.7,0.015]
[1736720718587,2.61199719,3246.2,3245.8,0.517174]
[1736720718788,2.61199719,3246.2,3245.9,0.23]
[1736720718963,2.61199719,3245.9,3245.2,1.024259]
[1736720719168,2.61199719,3245.3,3245.2,0.216459]
[1736720719370,2.61199719,3245.3,3245.0,0.23]
[1736720719572,2.61199719,3245.3,3244.9,0.8078]
[1736720719783,2.61199719,3245.3,3244.7,3.0]
[1736720719784,2.61199719,3245.0,3244.7,3.0]
[1736720719954,2.61199719,3245.0,3244.6,9.15]
[1736720719955,2.61199719,3245.0,3244.6,0.23]
[1736720720165,2.61199719,3244.7,3244.6,0.23]
[1736720720493,2.61199719,3244.7,3244.6,0.26081423]
[1736720720883,2.61199719,3244.7,3244.6,0.23]
[1736720721057,2.61199719,3244.7,3244.6,0.26081424]
[1736720721571,2.61199719,3244.7,3244.6,0.23]
[1736720722299,2.61199719,3244.7,3244.4,0.8078]
[1736720722458,2.61199719,3244.7,3244.5,0.23]
[1736720723859,2.61199719,3244.7,3244.6,0.03081428]
[1736720724260,2.61199719,3244.7,3244.6,0.03081429]
[1736720725206,2.61199719,3244.7,3244.5,0.23]
[1736720725424,2.61199719,3244.7,3244.0,13.0928]
[1736720725425,2.61199719,3244.7,3244.0,0.8078]
[1736720725698,0.7711,3244.6,3244.1,0.1910723]
[1736720726065,0.7711,3244.6,3243.7,0.8078]
[1736720726271,2.61199719,3243.9,3243.8,0.23]
[1736720726675,2.61199719,3243.9,3243.7,0.23]
[1736720727124,2.61199719,3243.9,3243.6,0.25]
[1736720727304,2.61199719,3243.9,3243.6,0.23]
[1736720727467,2.61199719,3243.9,3243.7,0.40528]
[1736720727863,2.61199719,3243.9,3243.5,1.0453]
[1736720728148,2.61199719,3243.6,3243.5,1.0453]
[1736720728313,2.61199719,3243.6,3243.5,4.0453]
[1736720731882,2.36712246,3243.6,3243.5,4.0453]
[1736720732385,2.36712246,3243.6,3243.5,3.2375]
[1736720732593,2.36712246,3243.6,3243.5,1.10907618]
[1736720732904,0.7711,3243.5,3243.4,3.44498179]
[1736720743169,1.39096161,3243.5,3243.4,3.44498179]
[1736720750054,1.3501097,3243.5,3243.4,3.44498179]
[1736720753046,0.7831,3243.4,3242.1,0.7906]
[1736720753254,2.61199719,3242.2,3242.1,0.7906]
[1736720753447,2.61199719,3242.2,3242.1,1.5321514]
[1736720754162,2.61199719,3242.2,3242.1,0.7906]
[1736720756786,5.22399438,3242.2,3241.7,1.0127]
[1736720756932,2.61199719,3241.9,3241.7,1.0127]
[1736720760062,2.61199719,3241.9,3241.7,4.0127]
[1736720764761,2.61199719,3241.9,3241.7,3.7817]
[1736720765246,2.61199719,3241.9,3241.8,0.594862]
[1736720768062,2.61199719,3241.9,3241.7,0.7817]
[1736720768662,2.61199719,3241.9,3241.4,3.7817]
[1736720768858,2.61199719,3241.5,3241.4,0.7817]
[1736720769182,2.61199719,3241.5,3241.4,1.0097]
[1736720770789,2.61199719,3241.5,3241.4,0.7817]
[1736720771078,2.61199719,3241.5,3241.4,1.15987]
[1736720772287,2.61199719,3241.5,3241.4,0.37817]
[1736720774565,2.56199719,3241.5,3241.4,0.37817]
[1736720777089,2.56199719,3241.5,3241.1,4.49283736]
[1736720777392,2.61199719,3241.2,3241.1,7.49283736]
[1736720778390,2.61199719,3241.2,3241.1,4.49283736]
[1736720780655,5.22399438,3241.2,3241.1,4.49283736]
[1736720782064,5.22399438,3241.2,3241.1,3.31240256]
[1736720783396,5.85645183,3241.2,3241.1,3.31240256]
[1736720784163,2.15936,3241.7,3241.1,3.31240256]
[1736720784164,0.817,3241.7,3241.1,3.64364282]
[1736720784392,2.61199719,3241.2,3241.1,3.64364282]
[1736720785379,2.61199719,3241.2,3241.1,7.00154282]
[1736720785614,2.61199719,3241.2,3241.1,12.38930282]
[1736720786989,2.61199719,3241.2,3241.1,12.41674151]
[1736720787604,2.61199719,3241.2,3241.1,12.44674151]
[1736720787979,2.61199719,3242.2,3241.5,2.15947]
[1736720788266,2.61199719,3242.2,3241.7,0.7725]
[1736720788790,2.61199719,3242.2,3241.8,0.02842138]
[1736720789214,2.61199719,3242.2,3241.7,0.7725]
[1736720789414,2.61199719,3241.8,3241.7,0.7725]
[1736720792590,2.61199719,3241.8,3241.6,0.215947]
[1736720796887,2.61199719,3241.8,3241.4,6.40307475]
[1736720797098,0.821,3242.0,3241.4,6.40307475]
[1736720797099,2.61199719,3241.5,3241.4,6.40307475]
[1736720797488,2.61199719,3241.5,3241.4,3.40307475]
[1736720797893,3.43299719,3241.5,3241.4,3.40307475]
[1736720798127,2.61199719,3241.5,3241.4,3.40307475]
[1736720801008,2.61199719,3241.5,3241.4,3.43092876]
[1736720803867,3.39769719,3241.5,3241.4,3.43092876]
[1736720804233,3.79877465,3241.5,3241.4,3.43092876]
[1736720804839,6.41077184,3241.5,3241.4,3.43092876]
[1736720805256,6.96077184,3241.5,3241.4,3.43092876]
[1736720806538,9.12026184,3241.5,3241.4,3.43092876]
[1736720806962,9.12776184,3241.5,3241.4,3.43092876]
[1736720807171,9.12776184,3241.5,3241.4,2.82945347]
[1736720808139,9.12776184,3241.5,3241.4,2.80159946]
[1736720808474,9.12776184,3241.5,3241.4,2.16872952]
[1736720808715,9.12776184,3241.5,3241.4,1e-08]
[1736720810569,0.7931,3241.0,3240.0,0.8]
[1736720810769,2.15977,3241.1,3239.8,0.227]
[1736720810770,2.61199719,3240.1,3239.8,0.227]
[1736720810987,2.61199719,3240.1,3239.8,0.9971]
[1736720811346,2.61199719,3240.1,3239.8,0.7701]
[1736720814171,3.42119719,3239.9,3239.4,2.7238798]
[1736720814369,2.61199719,3239.6,3239.4,2.7238798]
[1736720814674,0.8092,3239.5,3239.4,2.7238798]
[1736720817253,0.55,3239.4,3238.1,0.005]
[1736720817447,2.61199719,3238.2,3238.1,0.005]
[1736720821311,2.61199719,3238.3,3238.1,0.7599]
[1736720825012,5.22399438,3238.3,3238.1,0.7599]
[1736720825373,5.22399438,3238.3,3238.1,0.005]
[1736720826713,5.22399438,3238.3,3238.2,0.02752386]
[1736720827119,2.61199719,3238.3,3238.2,0.02752386]
[1736720830926,2.61199719,3238.3,3238.2,5.9749921]
[1736720831128,2.61199719,3238.3,3238.2,6.54211307]
[1736720833232,0.8092,3238.9,3238.3,3.015]
[1736720833544,2.61199719,3238.4,3238.2,0.02752386]
[1736720833696,2.61199719,3238.4,3238.1,0.7599]
[1736720834202,2.61199719,3238.4,3238.2,3.0]
[1736720834513,0.8092,3238.9,3238.3,0.592165]
[1736720834711,2.61199719,3238.4,3238.3,0.592165]
[1736720835331,2.61199719,3238.4,3238.2,2.16169]
[1736720835510,3.41499719,3238.3,3238.1,0.005]
[1736720838899,0.803,3238.3,3238.1,0.005]
[1736720839939,2.61199719,3238.4,3238.1,0.005]
[1736720840338,2.61199719,3238.4,3238.2,0.8048]
[1736720840536,2.61199719,3238.4,3238.3,8.30766645]
[1736720840908,2.61199719,3238.4,3238.3,8.41179665]
[1736720841443,2.61199719,3238.4,3238.3,8.43429665]
[1736720841628,2.61199719,3239.1,3239.0,2.16116]
[1736720841829,0.7951,3240.5,3239.0,7.1188]
[1736720842057,0.7951,3240.5,3239.1,5.19189405]
[1736720842236,2.61199719,3239.3,3239.2,0.81918941]
[1736720842556,2.61199719,3239.3,3239.2,2.16102]
[1736720842754,2.61199719,3239.3,3239.2,10.16102]
[1736720843054,2.61199719,3239.4,3239.3,2.96575]
[1736720843242,2.61199719,3239.4,3239.3,2.99661642]
[1736720843553,0.7951,3240.5,3239.4,2.16087]
[1736720843859,2.61199719,3239.6,3239.5,5.99133534]
[1736720844059,2.61199719,3239.6,3239.5,10.96047364]
[1736720844732,2.61199719,3239.9,3239.6,5.16071]
[1736720844930,2.61199719,3239.9,3239.7,0.25686197]
[1736720845591,2.61199719,3239.9,3239.7,0.226]
[1736720846155,2.61199719,3239.9,3239.8,2.16062]
[1736720846329,2.61199719,3239.9,3239.8,2.699282]
[1736720847039,0.7951,3240.7,3239.8,2.73014323]
[1736720847247,2.61199719,3240.0,3239.8,2.699282]
[1736720847971,2.61199719,3240.0,3239.8,0.538662]
[1736720848270,2.61199719,3240.0,3239.7,3.226]
[1736720853438,2.61199719,3240.0,3239.8,0.8147]
[1736720855044,0.7508,3241.1,3240.2,2.16034]
[1736720855267,2.61199719,3240.6,3240.4,0.8147]
[1736720855487,2.61199719,3240.6,3240.5,2.91544011]
[1736720857472,2.61199719,3240.6,3240.5,5.30160011]
[1736720858378,2.61199719,3240.6,3240.5,2.68674433]
[1736720858555,2.61199719,3240.6,3240.5,5.68674433]
[1736720858887,2.61199719,3240.6,3240.5,8.99122433]
[1736720863788,2.61199719,3240.6,3240.5,6.83106433]
[1736720863986,2.61199719,3240.6,3240.5,7.35952433]
[1736720865283,2.61199719,3240.6,3240.5,9.51968433]
[1736720866585,2.61199719,3240.6,3240.5,3.30058433]
[1736720866761,2.61199719,3240.6,3240.5,3.228]
[1736720867565,2.61199719,3240.6,3240.5,3.0]
[1736720872315,2.61199719,3240.6,3240.4,0.228]
[1736720872610,2.61199719,3240.6,3239.9,0.228]
[1736720872773,2.61199719,3240.1,3239.9,0.228]
[1736720872974,2.61199719,3240.1,3239.9,0.466861]
[1736720873916,2.61199719,3240.1,3239.9,0.228]
[1736720874203,0.796,3240.0,3239.1,1.235608]
[1736720874405,2.16029,3240.3,3239.1,1.235608]
[1736720874406,2.61199719,3239.2,3239.1,1.235608]
[1736720874983,2.61199719,3239.2,3238.9,3.0]
[1736720875208,2.61199719,3239.2,3239.0,0.40254]
[1736720875413,2.61199719,3239.1,3238.8,0.228]
[1736720876521,2.61199719,3239.1,3238.8,0.25887159]
[1736720880815,2.61199719,3239.1,3238.8,0.25887172]
[1736720881512,2.61199719,3239.1,3238.8,2.19216172]
[1736720881719,2.61199719,3239.1,3238.8,0.03087172]
[1736720881878,2.61199719,3239.1,3238.7,0.25887162]
[1736720882078,2.61199719,3238.8,3238.7,3.25887162]
[1736720882283,0.7505,3239.5,3238.7,3.34199078]
[1736720882481,2.61199719,3238.8,3238.7,3.34199078]
[1736720882679,2.42834114,3238.8,3238.7,11.34199078]
[1736720882922,2.42834114,3238.8,3238.7,11.31111916]
[1736720883121,2.25759839,3238.8,3238.7,11.31111916]
[1736720883322,2.06358602,3238.8,3238.7,11.31111916]
[1736720883721,1.25338855,3238.8,3238.7,11.31111916]
[1736720883929,1.25338855,3238.8,3238.7,8.52370916]
[1736720886791,1.25338855,3238.8,3238.7,9.84410916]
[1736720910781,2.61199719,3239.1,3239.0,2.16109]
[1736720910983,2.61199719,3239.1,3239.0,5.677199]
[1736720911356,0.7884,3240.7,3239.1,3.0]
[1736720911687,0.7884,3240.7,3239.0,9.283909]
[1736720911688,2.61199719,3239.7,3239.6,2.16074]
[1736720911981,2.61199719,3239.7,3239.6,2.38774]
[1736720912978,2.61199719,3239.7,3239.6,6.20304]
[1736720913156,2.61199719,3239.7,3239.6,11.82643051]
[1736720914761,2.61199719,3240.0,3239.9,2.16051]
[1736720914961,2.61199719,3240.0,3239.9,10.16051]
[1736720915374,0.7953,3240.4,3240.0,3.0]
[1736720915572,2.61199719,3240.1,3240.0,2.19133036]
[1736720915755,2.61199719,3240.1,3240.0,2.37960304]
[1736720916695,2.61199719,3240.9,3240.0,2.37960304]
[1736720916696,0.7756,3240.8,3240.1,2.16039]
[1736720916868,0.7756,3240.8,3240.2,0.03085781]
[1736720917060,2.61199719,3240.3,3240.2,0.03085781]
[1736720917260,2.61199719,3240.3,3240.1,2.16039]
[1736720917455,2.61199719,3240.3,3240.2,0.3165523]
[1736720917702,2.61199719,3240.3,3240.2,3.3165523]
[1736720917860,2.61199719,3240.3,3240.2,0.3165523]
[1736720918063,2.61199719,3240.3,3240.2,2.4769123]
[1736720918591,2.61199719,3240.3,3240.2,7.7486723]
[1736720920330,2.61199719,3240.6,3240.5,2.16016]
[1736720920611,2.61199719,3240.6,3240.5,2.603176]
[1736720920962,2.61199719,3240.6,3240.5,4.927566]
[1736720921164,2.61199719,3240.9,3240.8,2.15994]
[1736720921675,0.7618,3241.4,3240.8,2.15994]
[1736720921876,0.7618,3241.4,3240.9,0.03085153]
[1736720922079,2.61199719,3241.0,3240.9,0.03085153]
[1736720922271,2.61199719,3241.0,3240.9,0.21907915]
[1736720923169,2.61199719,3241.0,3240.9,5.31553915]
[1736720923687,2.61199719,3241.0,3240.9,3.21907915]
[1736720924975,2.61199719,3241.0,3240.9,6.50336915]
[1736720925203,2.61199719,3241.0,3240.9,6.18614915]
[1736720926101,2.61199719,3241.0,3240.9,3.21907915]
[1736720926272,2.61199719,3241.0,3240.9,0.21907915]
[1736720926603,2.61199719,3241.0,3240.9,2.15989]
[1736720926802,2.61199719,3241.0,3240.9,5.15989]
[1736720927004,2.61199719,3241.0,3240.9,9.94838]
[1736720929406,2.61199719,3241.1,3241.0,2.15982]
[1736720929575,0.7618,3241.4,3241.1,3.0]
[1736720929775,0.7618,3241.4,3241.2,1.01906716]
[1736720929982,0.7618,3241.4,3241.0,2.19067004]
[1736720930170,0.7618,3241.4,3241.0,2.15982]
[1736720931171,2.61199719,3241.1,3241.0,2.15982]
[1736720931371,2.61199719,3241.1,3241.0,10.15982]
[1736720932108,3.40389719,3241.1,3241.0,8.0]
[1736720932304,6.01589438,3241.1,3240.5,0.216016]
[1736720932605,2.61199719,3240.6,3240.1,2.1604]
[1736720932778,2.61199719,3240.3,3240.1,2.1604]
[1736720934004,2.61199719,3240.3,3240.2,2.16036]
[1736720935425,2.61199719,3240.3,3240.2,2.11036]
[1736720935931,2.61199719,3240.3,3240.2,7.30621]
[1736720936089,2.61199719,3240.3,3240.2,5.840981]
[1736720937187,2.61199719,3240.3,3240.2,3.730621]
[1736720937378,2.61199719,3240.3,3240.2,3.956621]
[1736720939887,2.61199719,3240.3,3240.2,6.246401]
[1736720940083,2.61199719,3240.3,3240.2,3.956621]
[1736720940899,2.61199719,3240.3,3240.2,6.116981]
[1736720942647,2.61199719,3240.3,3240.2,5.890981]
[1736720942843,2.61199719,3240.3,3240.2,6.116981]
[1736720946804,0.7919,3240.5,3240.2,10.588691]
[1736720946986,0.7919,3240.5,3240.3,1.0588691]
[1736720951106,2.61199719,3240.4,3240.3,1.0588691]
[1736720953033,2.61199719,3240.4,3240.3,4.5431191]
[1736720953329,1.23602681,3240.4,3240.3,4.5431191]
[1736720954110,1.23602681,3240.4,3240.3,6.73426804]
[1736720954291,1.23602681,3240.4,3240.3,6.7034091]
[1736720955316,2.15916,3242.0,3240.3,6.7034091]
[1736720955317,2.61051732,3240.7,3240.4,8.935]
[1736720955519,2.61051732,3240.7,3240.6,5.93569]
[1736720955719,2.61051732,3240.7,3240.6,10.95069]
[1736720959638,2.61051732,3241.0,3240.6,8.7906]
[1736720959828,2.61051732,3241.0,3240.8,2.1599]
[1736720960030,2.61051732,3241.0,3240.9,2.6634659]
[1736720961742,2.61051732,3241.0,3240.9,4.8233559]
[1736720964910,2.76897053,3242.0,3240.9,4.8233559]
[1736720964911,2.61051732,3241.3,3241.1,2.15975]
[1736720965113,2.61051732,3241.3,3241.2,5.26636]
[1736720965312,2.61051732,3241.3,3241.2,6.308971]
[1736720967759,2.61051732,3241.3,3241.2,8.468661]
[1736720967958,2.61051732,3242.2,3241.2,8.468661]
[1736720967959,2.61051732,3241.6,3241.2,8.468661]
[1736720968165,2.61051732,3241.6,3241.3,0.03084819]
[1736720968304,2.61051732,3241.6,3241.4,3.0]
[1736720968508,2.61051732,3241.6,3241.5,7.35211482]
[1736720968742,2.61051732,3241.6,3241.5,6.42439482]
[1736720971846,2.61051732,3241.6,3241.5,3.80308482]
[1736720972205,2.61051732,3241.6,3241.5,6.30603482]
[1736720975451,1.23502851,3241.6,3241.5,6.30603482]
[1736720976015,1.23502851,3241.6,3241.5,8.46552482]
[1736720978117,1.23502851,3241.6,3241.5,8.69352482]
[1736720985699,0.7689,3242.0,3241.6,2.15941]
[1736720985875,2.00392851,3242.0,3241.7,0.86248519]
[1736720986050,2.00392851,3242.0,3241.6,2.19025544]
[1736720987847,0.60705814,3242.8,3241.7,0.7628]
[1736720987848,0.8109,3242.4,3241.7,0.7628]
[1736720988147,1.23502851,3241.8,3241.7,0.7703]
[1736720988372,1.23502851,3241.8,3241.7,11.560437]
[1736720989561,1.23502851,3241.8,3241.7,11.537937]
[1736720989885,1.23502851,3241.8,3241.7,10.775137]
[1736720990085,1.23502851,3241.8,3241.7,9.105387]
[1736720991045,1.23502851,3241.8,3241.7,6.946027]
[1736720991252,1.23502851,3241.8,3241.7,6.187577]
[1736720991455,0.8109,3241.7,3241.2,1.042611]
[1736720991674,1.23502851,3241.3,3241.1,0.226]
[1736720991897,3.23105702,3241.2,3241.1,0.226]
[1736720992256,3.23105702,3241.2,3240.5,0.8328]
[1736720992590,3.23105702,3241.2,3240.2,0.8328]
[1736720992591,1.23502851,3240.7,3240.2,0.8328]
[1736720992797,0.761,3240.6,3240.3,0.525322]
[1736720993096,1.23502851,3240.4,3240.3,0.226]
[1736720993563,2.47005702,3240.4,3240.3,0.226]
[1736720993763,2.47005702,3240.4,3240.0,0.226]
[1736720993980,2.47005702,3240.1,3240.0,0.226]
[1736720995296,2.47005702,3240.1,3239.7,5.16067]
[1736720995469,0.761,3240.6,3240.0,0.226]
[1736720997273,2.61191276,3240.1,3240.0,0.226]
[1736720998404,3.39481276,3240.1,3239.5,0.226]
[1736720998635,2.61191276,3239.6,3239.5,0.226]
[1736720998897,2.61191276,3239.6,3239.5,6.371799]
[1736720999089,2.61191276,3239.6,3239.5,3.371799]
[1736720999288,2.61191276,3239.6,3239.5,0.542589]
[1736720999786,2.51191276,3239.6,3239.5,0.542589]
[1736721000798,2.51191276,3239.6,3239.5,3.965209]
[1736721000999,2.51191276,3239.6,3239.5,0.316589]
[1736721001200,2.51191276,3239.6,3239.5,0.226]
[1736721001370,0.7829,3239.5,3239.0,0.308737]
[1736721001572,2.61191276,3239.3,3239.0,0.308737]
[1736721002080,2.61191276,3239.3,3239.0,0.534737]
[1736721002486,2.61191276,3239.3,3239.0,0.308737]
[1736721003909,0.8057,3239.2,3239.0,0.308737]
[1736721004882,1.36355128,3239.2,3239.0,0.308737]
[1736721005082,0.8057,3239.2,3239.0,0.308737]
[1736721006695,2.16108,3239.2,3239.0,0.308737]
[1736721006905,0.7947,3239.1,3239.0,0.308737]
[1736721011723,0.15570194,3239.8,3239.0,0.308737]
[1736721011724,0.7525,3239.4,3239.0,4.328307]
[1736721011924,2.61191276,3239.2,3239.0,0.308737]
[1736721013156,2.61191276,3239.2,3239.1,4.98909]
[1736721013832,2.61191276,3239.2,3239.1,2.16109]
[1736721014025,2.61191276,3239.2,3239.0,0.308737]
[1736721019844,2.61191276,3239.2,3239.0,2.469887]
[1736721020049,2.61191276,3239.2,3239.1,0.2469887]
[1736721021139,2.61191276,3239.5,3239.1,0.2469887]
[1736721021461,2.61191276,3239.5,3239.3,0.766]
[1736721021960,2.61191276,3239.8,3239.5,2.16076]
[1736721022161,2.61191276,3239.8,3239.6,2.39074]
[1736721022741,2.61191276,3239.8,3239.7,2.16069]
[1736721023275,2.61191276,3239.8,3239.7,5.80881]
[1736721023926,2.61191276,3240.1,3239.8,0.0075]
[1736721024130,2.61191276,3240.1,3240.0,5.16049]
[1736721024333,2.61191276,3240.4,3240.0,8.0]
[1736721024533,2.61191276,3240.4,3240.1,2.19126985]
[1736721024734,2.61191276,3240.4,3240.2,0.8307]
[1736721024966,2.61191276,3240.4,3240.3,0.30219698]
[1736721025170,2.61191276,3240.4,3240.3,2.16029]
[1736721026959,2.61191276,3240.4,3240.2,3.8307]
[1736721027468,2.61191276,3240.4,3240.2,0.8307]
[1736721027647,2.61191276,3240.4,3240.2,2.99104]
[1736721028881,2.61191276,3240.4,3240.3,2.16029]
[1736721029169,2.61191276,3240.4,3240.3,2.46247493]
[1736721032079,2.61191276,3240.4,3240.3,5.46247493]
[1736721032855,2.61191276,3240.4,3240.3,10.46247493]
[1736721033386,2.61191276,3240.7,3240.5,2.16012]
[1736721033548,2.61191276,3240.7,3240.6,0.23]
[1736721033869,2.61191276,3240.7,3240.6,7.22334769]
[1736721034050,2.61191276,3240.7,3240.6,7.31110769]
[1736721034257,2.61191276,3240.7,3240.6,7.07885769]
[1736721035106,2.61191276,3241.0,3240.9,2.15989]
[1736721035581,2.61191276,3241.0,3240.9,4.25303]
[1736721035781,2.61191276,3241.0,3240.9,4.758733]
[1736721036699,2.61191276,3241.3,3241.2,2.15969]
[1736721036996,2.61191276,3241.6,3241.2,7.93449]
[1736721037201,2.61191276,3241.6,3241.2,0.7748]
[1736721037405,2.61191276,3241.6,3241.3,0.03084898]
[1736721037695,2.61191276,3241.6,3241.5,2.15949]
[1736721037896,2.61191276,3241.6,3241.5,10.8732239]
[1736721038275,2.61191276,3241.6,3241.5,19.8082239]
[1736721039190,2.61191276,3241.9,3241.6,3.0]
[1736721039363,2.61191276,3241.9,3241.7,2.15932]
[1736721039898,2.61191276,3241.9,3241.8,2.15929]
[1736721040098,2.61191276,3241.9,3241.8,2.750879]
[1736721041318,2.61191276,3241.9,3241.8,0.591589]
[1736721041459,2.61191276,3241.9,3241.5,9.9620339]
[1736721041788,2.61191276,3241.6,3241.5,12.9620339]
[1736721042362,2.61191276,3241.6,3241.5,16.9934039]
[1736721043793,2.61191276,3241.9,3241.6,2.15942]
[1736721044394,2.61191276,3241.9,3241.7,5.0]
[1736721044629,2.61191276,3241.9,3241.8,0.715942]
[1736721044811,2.61191276,3241.9,3241.6,2.15942]
[1736721046197,2.61191276,3241.9,3241.7,5.0]
[1736721046734,2.61191276,3241.9,3241.7,7.15934]